[Event "25th Mediterranean Flower 2025"]
[Site "Rijeka"]
[Date "2025.03.02"]
[Round "1.1"]
[White "Ivekovic, Tihana"]
[Black "Rakhmangulova, Anastasiya"]
[Result "0-1"]
[Annotator "ChessBase"]
[ECO "E68"]
[WhiteElo "2089"]
[BlackElo "2324"]
[PlyCount "56"]
[EventDate "2025.03.02"]
[EventType "tourn"]
[EventCountry "CRO"]
[SourceTitle "playchess.com"]
[Source "ChessBase"]
[SourceQuality "1"]
[TimeControl "5400+30"]

1. d4 {[%emt 0:00:02]} d6 {[%emt 0:00:08]} 2. Nf3 {[%emt 0:00:17]} Nd7 {[%emt 0:00:15]} 3. c4 {[%emt 0:00:21]} g6 {[%emt 0:00:12]} 4. Nc3 {[%emt 0:00:14]} Bg7 {[%emt 0:00:06]} 5. g3 {[%emt 0:00:12]} e5 {[%emt 0:00:32]} 6. Bg2 {[%emt 0:00:19]} exd4 {[%emt 0:02:24]} 7. Nxd4 {[%emt 0:00:09]} Ngf6 {[%emt 0:00:24]} 8. O-O {[%emt 0:01:14]} O-O {[%emt 0:00:23]} 9. e4 {[%emt 0:02:25]} Re8 {[%emt 0:02:03]} 10. h3 {[%emt 0:02:18]} Nc5 {[%emt 0:02:30]} 11. Re1 {[%emt 0:00:27]} a5 {[%emt 0:02:04]} 12. Ndb5 {[%emt 0:16:26]} Bd7 {[%emt 0:04:12]} 13. Bg5 {[%emt 0:05:52]} h6 {[%emt 0:09:17]} 14. Bxf6 {[%emt 0:00:46]} Bxf6 {[%emt 0:00:06]} 15. Qd2 {[%emt 0:00:17]} Bg7 {[%emt 0:09:11]} 16. Rad1 {[%emt 0:03:16]} h5 {[%emt 0:04:15]} 17. h4 {[%emt 0:01:28]} a4 {[%emt 0:18:50]} 18. Nd4 {[%emt 0:17:25]} c6 {[%emt 0:04:43]} 19. Qc2 {[%emt 0:19:11]} Qc7 {[%emt 0:03:25]} 20. Nde2 {[%emt 0:11:59]} Bg4 {[%emt 0:01:22]} 21. Rd2 {[%emt 0:01:27]} a3 {[%emt 0:08:55]} 22. b4 {[%emt 0:02:12]} Nd7 {[%emt 0:01:55]} 23. Red1 {[%emt 0:06:21]} Ne5 {[%emt 0:02:08]} 24. Rxd6 {[%emt 0:03:00]} Nxc4 {[%emt 0:01:07]} 25. R6d4 {[%emt 0:00:14]} Bxd4 {[%emt 0:05:47]} 26. Rxd4 {[%emt 0:00:10]} Ne5 {[%emt 0:00:23]} 27. Nd5 {[%emt 0:00:27]} Qd8 {[%emt 0:00:24]} 28. Ne3 {[%emt 0:00:37]} Qf6 {[%emt 0:02:03]} 0-1

[Event "25th Mediterranean Flower 2025"]
[Site "Rijeka"]
[Date "2025.03.02"]
[Round "1.2"]
[White "Skuhala, Barbara"]
[Black "Zagorac, Lara"]
[Result "1/2-1/2"]
[Annotator "NA"]
[ECO "C55"]
[WhiteElo "2115"]
[BlackElo "2061"]
[PlyCount "95"]
[EventDate "2025.03.02"]
[EventType "tourn"]
[EventCountry "CRO"]
[SourceTitle "playchess.com"]
[Source "ChessBase"]
[SourceQuality "1"]
[TimeControl "5400+30"]

1. e4 {[%emt 0:00:01]} e5 {[%emt 0:00:13]} 2. Nf3 {[%emt 0:00:04]} Nc6 {[%emt 0:00:16]} 3. Bc4 {[%emt 0:00:06]} Nf6 {[%emt 0:00:30]} 4. d3 {[%emt 0:00:38]} Be7 {[%emt 0:00:11]} 5. c3 {[%emt 0:00:25]} d6 {[%emt 0:01:03]} 6. h3 {[%emt 0:00:11]} O-O {[%emt 0:00:11]} 7. O-O {[%emt 0:01:01]} Kh8 {[%emt 0:00:15]} 8. Re1 {[%emt 0:00:18]} Ng8 {[%emt 0:00:20]} 9. d4 {[%emt 0:06:49]} f5 {[%emt 0:00:11]} 10. dxe5 {[%emt 0:05:58]} fxe4 {[%emt 0:00:17]} 11. Rxe4 {[%emt 0:08:20]} Rxf3 {[%emt 0:00:48]} 12. Bxg8 {[%emt 1:12:39]} Rf8 {[%emt 0:01:38]} 13. Bb3 {[%emt 0:00:00]} Nxe5 {[%emt 0:05:50]} 14. Bc2 {[%emt 0:00:00]} Bf5 {[%emt 0:14:59]} 15. Rf4 {[%emt 0:00:00]} Qd7 {[%emt 0:12:09]} 16. Rxf5 {[%emt 0:00:00]} Rxf5 {[%emt 0:00:33]} 17. Bxf5 {[%emt 0:00:00]} Qxf5 {[%emt 0:00:22]} 18. Na3 {[%emt 0:00:00]} Rf8 {[%emt 0:03:44]} 19. Qe2 {[%emt 0:00:00]} d5 {[%emt 0:11:17]} 20. Nc2 {[%emt 0:00:00]} c5 {[%emt 0:05:36]} 21. Ne3 {[%emt 0:00:00]} Qf7 {[%emt 0:02:51]} 22. Bd2 {[%emt 0:00:00]} d4 {[%emt 0:05:29]} 23. cxd4 {[%emt 0:00:11]} cxd4 {[%emt 0:00:16]} 24. Nd1 {[%emt 0:00:07]} Bf6 {[%emt 0:33:31]} 25. a3 {[%emt 0:04:52]} Nc4 {[%emt 0:00:00]} 26. Rc1 {[%emt 0:01:12]} b5 {[%emt 0:00:00]} 27. Qd3 {[%emt 0:00:31]} Be5 {[%emt 0:00:00]} 28. Bb4 {[%emt 0:00:21]} Re8 {[%emt 0:00:00]} 29. g3 {[%emt 0:00:19]} a5 {[%emt 0:00:00]} 30. Bc5 {[%emt 0:00:46]} Qh5 {[%emt 0:00:00]} 31. Kg2 {[%emt 0:00:38]} Bxg3 {[%emt 0:00:00]} 32. Bxd4 {[%emt 0:00:30]} Bf4 {[%emt 0:00:00]} 33. Ne3 {[%emt 0:00:09]} Bxe3 {[%emt 0:01:08]} 34. Bxe3 {[%emt 0:00:09]} Nxe3+ {[%emt 0:00:14]} 35. fxe3 {[%emt 0:00:06]} Qg5+ {[%emt 0:00:20]} 36. Kh1 {[%emt 0:00:54]} h6 {[%emt 0:01:07]} 37. Rc3 {[%emt 0:01:11]} Qg3 {[%emt 0:01:10]} 38. Qd7 {[%emt 0:00:30]} Rf8 {[%emt 0:00:24]} 39. Rc8 {[%emt 0:00:06]} Qf3+ {[%emt 0:01:18]} 40. Kh2 {[%emt 0:00:23]} Qf2+ {[%emt 0:00:13]} 41. Kh1 {[%emt 0:00:05]} Qf1+ {[%emt 0:00:29]} 42. Kh2 {[%emt 0:00:05]} b4 {[%emt 0:01:23]} 43. axb4 {[%emt 0:00:19]} axb4 {[%emt 0:00:06]} 44. Rxf8+ {[%emt 0:00:42]} Qxf8 {[%emt 0:00:05]} 45. Qd4 {[%emt 0:01:17]} Qf2+ {[%emt 0:00:55]} 46. Kh1 {[%emt 0:00:08]} Qf1+ {[%emt 0:00:10]} 47. Kh2 {[%emt 0:00:06]} Qf2+ {[%emt 0:00:08]} 48. Kh1 {[%emt 0:00:04]} 1/2-1/2

[Event "25th Mediterranean Flower 2025"]
[Site "Rijeka"]
[Date "2025.03.02"]
[Round "1.3"]
[White "Berke, Ana"]
[Black "Kejzar, Petra"]
[Result "1/2-1/2"]
[Annotator "NA"]
[ECO "D02"]
[WhiteElo "2119"]
[BlackElo "2052"]
[PlyCount "39"]
[EventDate "2025.03.02"]
[EventType "tourn"]
[EventCountry "CRO"]
[SourceTitle "playchess.com"]
[Source "ChessBase"]
[SourceQuality "1"]
[TimeControl "5400+30"]

1. d4 {[%emt 0:00:04]} d5 {[%emt 0:00:04]} 2. Bf4 {[%emt 0:00:24]} Nf6 {[%emt 0:00:07]} 3. e3 {[%emt 0:00:08]} e6 {[%emt 0:00:19]} 4. c3 {[%emt 0:00:08]} c5 {[%emt 0:00:04]} 5. Nd2 {[%emt 0:00:26]} Nc6 {[%emt 0:00:05]} 6. Ngf3 {[%emt 0:00:10]} Be7 {[%emt 0:00:08]} 7. Bd3 {[%emt 0:00:09]} O-O {[%emt 0:00:29]} 8. h3 {[%emt 0:02:05]} b6 {[%emt 0:00:11]} 9. O-O {[%emt 0:01:17]} Bb7 {[%emt 1:33:33]} 10. Re1 {[%emt 0:01:17]} Bd6 {[%emt 0:00:00]} 11. Bxd6 {[%emt 0:00:20]} Qxd6 {[%emt 0:00:00]} 12. Rc1 {[%emt 0:00:20]} e5 {[%emt 0:00:00]} 13. dxe5 {[%emt 0:00:22]} Nxe5 {[%emt 0:00:00]} 14. Nxe5 {[%emt 0:01:08]} Qxe5 {[%emt 0:00:00]} 15. Qc2 {[%emt 0:00:57]} Rad8 {[%emt 0:00:00]} 16. e4 {[%emt 0:01:15]} dxe4 {[%emt 0:00:00]} 17. Nxe4 {[%emt 0:00:35]} Nxe4 {[%emt 0:00:00]} 18. Bxe4 {[%emt 0:00:06]} Bxe4 {[%emt 0:00:00]} 19. Qxe4 {[%emt 0:00:27]} Qxe4 {[%emt 0:00:00]} 20. Rxe4 {[%emt 0:00:03]} 1/2-1/2

[Event "25th Mediterranean Flower 2025"]
[Site "Rijeka"]
[Date "2025.03.02"]
[Round "1.4"]
[White "Hajdinic, Ema"]
[Black "Medic, Mirjana"]
[Result "1/2-1/2"]
[Annotator "NA"]
[ECO "C01"]
[WhiteElo "1914"]
[BlackElo "2069"]
[PlyCount "84"]
[EventDate "2025.03.02"]
[EventType "tourn"]
[EventCountry "CRO"]
[SourceTitle "playchess.com"]
[Source "ChessBase"]
[SourceQuality "1"]
[TimeControl "5400+30"]

1. e4 {[%emt 0:00:03]} e6 {[%emt 0:00:06]} 2. d4 {[%emt 0:00:11]} d5 {[%emt 0:00:02]} 3. exd5 {[%emt 0:00:08]} exd5 {[%emt 0:00:02]} 4. Nf3 {[%emt 0:00:07]} Nf6 {[%emt 0:00:35]} 5. Bd3 {[%emt 0:00:07]} c5 {[%emt 0:04:06]} 6. O-O {[%emt 0:00:17]} c4 {[%emt 0:00:32]} 7. Re1+ {[%emt 0:00:05]} Be7 {[%emt 0:00:07]} 8. Bf1 {[%emt 0:00:04]} O-O {[%emt 0:01:19]} 9. b3 {[%emt 0:00:30]} cxb3 {[%emt 0:03:55]} 10. axb3 {[%emt 0:00:05]} Nc6 {[%emt 0:00:25]} 11. Ne5 {[%emt 0:10:48]} Be6 {[%emt 0:19:52]} 12. Ba3 {[%emt 0:11:04]} Bxa3 {[%emt 0:03:12]} 13. Nxc6 {[%emt 0:03:23]} Qb6 {[%emt 0:03:26]} 14. Rxa3 {[%emt 0:03:35]} Qxc6 {[%emt 0:00:19]} 15. Bd3 {[%emt 0:02:01]} a6 {[%emt 0:07:53]} 16. b4 {[%emt 0:11:16]} Qd6 {[%emt 0:00:35]} 17. c3 {[%emt 0:02:25]} Bg4 {[%emt 0:03:49]} 18. f3 {[%emt 0:06:00]} Bh5 {[%emt 0:03:45]} 19. Ra2 {[%emt 0:03:57]} Bg6 {[%emt 0:00:23]} 20. Rae2 {[%emt 0:00:58]} a5 {[%emt 0:01:39]} 21. Bxg6 {[%emt 0:05:48]} hxg6 {[%emt 0:00:06]} 22. bxa5 {[%emt 0:00:18]} Rxa5 {[%emt 0:00:10]} 23. Rb2 {[%emt 0:02:47]} b6 {[%emt 0:01:26]} 24. Qb3 {[%emt 0:02:29]} Nd7 {[%emt 0:02:11]} 25. Qb4 {[%emt 0:02:30]} Qc6 {[%emt 0:03:23]} 26. Na3 {[%emt 0:05:28]} Rfa8 {[%emt 0:11:09]} 27. Nb5 {[%emt 0:01:25]} Ra1 {[%emt 0:04:33]} 28. Rxa1 {[%emt 0:02:30]} Rxa1+ {[%emt 0:00:03]} 29. Rb1 {[%emt 0:00:20]} Rxb1+ {[%emt 0:01:42]} 30. Qxb1 {[%emt 0:00:06]} Nf6 {[%emt 0:03:08]} 31. g4 {[%emt 0:02:39]} g5 {[%emt 0:01:40]} 32. Qd3 {[%emt 0:03:11]} Nd7 {[%emt 0:00:49]} 33. Na7 {[%emt 0:02:18]} Qe6 {[%emt 0:01:28]} 34. Nc8 {[%emt 0:06:25]} Nf8 {[%emt 0:00:57]} 35. Qf5 {[%emt 0:00:47]} Qe3+ {[%emt 0:01:54]} 36. Kf1 {[%emt 0:01:03]} Qc1+ {[%emt 0:00:53]} 37. Kf2 {[%emt 0:01:11]} Qd2+ {[%emt 0:00:46]} 38. Kf1 {[%emt 0:00:37]} Qd1+ {[%emt 0:07:51]} 39. Kf2 {[%emt 0:00:07]} Qd2+ {[%emt 0:01:17]} 40. Kf1 {[%emt 0:11:27]} Ne6 {[%emt 0:09:02]} 41. Ne7+ {[%emt 0:00:30]} Kf8 {[%emt 0:00:30]} 42. Nxd5 {[%emt 0:00:30]} Kg8 {[%emt 0:00:30]} 1/2-1/2

[Event "25th Mediterranean Flower 2025"]
[Site "Rijeka"]
[Date "2025.03.02"]
[Round "1.5"]
[White "Vidic, Teja"]
[Black "Doluhanova, Evgeniya"]
[Result "1/2-1/2"]
[Annotator "ChessBase"]
[ECO "C45"]
[WhiteElo "2088"]
[BlackElo "2272"]
[PlyCount "113"]
[EventDate "2025.03.02"]
[EventType "tourn"]
[EventCountry "CRO"]
[SourceTitle "playchess.com"]
[Source "ChessBase"]
[SourceQuality "1"]
[TimeControl "5400+30"]

1. e4 {[%emt 0:00:04]} e5 {[%emt 0:00:06]} 2. Nf3 {[%emt 0:00:05]} Nc6 {[%emt 0:00:04]} 3. d4 {[%emt 0:00:06]} exd4 {[%emt 0:00:09]} 4. Nxd4 {[%emt 0:00:06]} Qf6 {[%emt 0:00:16]} 5. Be3 {[%emt 0:01:12]} Bc5 {[%emt 0:00:16]} 6. c3 {[%emt 0:00:05]} Bb6 {[%emt 0:02:00]} 7. Bc4 {[%emt 0:00:59]} Qg6 {[%emt 0:00:56]} 8. O-O {[%emt 0:00:46]} d6 {[%emt 0:03:41]} 9. Nb5 {[%emt 0:12:29]} Bg4 {[%emt 0:03:51]} 10. Be2 {[%emt 0:07:57]} Bxe2 {[%emt 0:06:37]} 11. Qxe2 {[%emt 0:00:06]} Rc8 {[%emt 0:03:00]} 12. Bxb6 {[%emt 0:05:36]} axb6 {[%emt 0:00:05]} 13. c4 {[%emt 0:00:08]} Nf6 {[%emt 0:01:16]} 14. N1c3 {[%emt 0:00:10]} O-O {[%emt 0:00:48]} 15. f4 {[%emt 0:02:55]} Rfe8 {[%emt 0:04:07]} 16. Rae1 {[%emt 0:02:18]} h5 {[%emt 0:05:14]} 17. Qf3 {[%emt 0:09:45]} Nb4 {[%emt 0:09:57]} 18. Re2 {[%emt 0:13:13]} Na6 {[%emt 0:07:39]} 19. Rfe1 {[%emt 0:09:32]} Nd7 {[%emt 0:02:16]} 20. Nd4 {[%emt 0:04:26]} Nac5 {[%emt 0:04:35]} 21. a3 {[%emt 0:08:57]} Ne6 {[%emt 0:10:57]} 22. Nf5 {[%emt 0:01:32]} Qg4 {[%emt 0:02:34]} 23. Qxg4 {[%emt 0:00:49]} hxg4 {[%emt 0:00:05]} 24. g3 {[%emt 0:00:19]} g6 {[%emt 0:14:27]} 25. Nh6+ {[%emt 0:05:40]} Kg7 {[%emt 0:00:06]} 26. Nxg4 {[%emt 0:00:10]} Nd4 {[%emt 0:00:07]} 27. Rf2 {[%emt 0:00:35]} f5 {[%emt 0:04:45]} 28. Rd1 {[%emt 0:00:54]} c5 {[%emt 0:04:53]} 29. Ne3 {[%emt 0:00:22]} Nf6 {[%emt 0:00:21]} 30. Nc2 {[%emt 0:05:53]} Nxe4 {[%emt 0:05:09]} 31. Nxe4 {[%emt 0:01:56]} Rxe4 {[%emt 0:00:05]} 32. Nxd4 {[%emt 0:00:05]} cxd4 {[%emt 0:01:10]} 33. b3 {[%emt 0:00:07]} d5 {[%emt 0:02:58]} 34. cxd5 {[%emt 0:00:54]} Rd8 {[%emt 0:00:08]} 35. Rc2 {[%emt 0:01:09]} Rxd5 {[%emt 0:00:20]} 36. Rc7+ {[%emt 0:00:19]} Kh6 {[%emt 0:01:59]} 37. Rxb7 {[%emt 0:00:19]} d3 {[%emt 0:00:41]} 38. Rd2 {[%emt 0:00:10]} Re1+ {[%emt 0:00:53]} 39. Kf2 {[%emt 0:00:38]} Rh1 {[%emt 0:00:31]} 40. Kg2 {[%emt 0:00:07]} Rc1 {[%emt 0:00:51]} 41. Kf2 {[%emt 0:00:14]} Rh1 {[%emt 0:00:30]} 42. Rxb6 {[%emt 0:00:56]} Rxh2+ {[%emt 0:00:04]} 43. Ke3 {[%emt 0:00:06]} Rh3 {[%emt 0:00:15]} 44. Kf3 {[%emt 0:00:09]} Rh1 {[%emt 0:00:15]} 45. Rc6 {[%emt 0:01:05]} Rf1+ {[%emt 0:00:13]} 46. Kg2 {[%emt 0:00:04]} Ra1 {[%emt 0:00:23]} 47. a4 {[%emt 0:00:09]} Rd8 {[%emt 0:01:15]} 48. Rc3 {[%emt 0:00:18]} Re8 {[%emt 0:00:35]} 49. Rcxd3 {[%emt 0:01:02]} Ree1 {[%emt 0:00:07]} 50. Kf2 {[%emt 0:00:09]} Rg1 {[%emt 0:00:33]} 51. Rf3 {[%emt 0:01:47]} Kh5 {[%emt 0:00:44]} 52. Rd6 {[%emt 0:04:26]} Rgf1+ {[%emt 0:00:37]} 53. Kg2 {[%emt 0:00:19]} Rg1+ {[%emt 0:00:13]} 54. Kf2 {[%emt 0:00:26]} Rgf1+ {[%emt 0:00:41]} 55. Kg2 {[%emt 0:01:12]} Rg1+ {[%emt 0:00:50]} 56. Kf2 {[%emt 0:00:04]} Rgf1+ {[%emt 0:00:25]} 57. Kg2 {[%emt 0:00:06]} 1/2-1/2

[Event "25th Mediterranean Flower 2025"]
[Site "Rijeka"]
[Date "2025.03.03"]
[Round "2.1"]
[White "Rakhmangulova, Anastasiya"]
[Black "Doluhanova, Evgeniya"]
[Result "1/2-1/2"]
[Annotator "TA"]
[WhiteElo "2324"]
[BlackElo "2272"]
[PlyCount "34"]
[EventDate "2025.03.02"]
[EventType "tourn"]
[EventCountry "CRO"]
[SourceTitle "playchess.com"]
[Source "ChessBase"]
[SourceQuality "1"]
[TimeControl "5400+30"]

{[%evp 13,18,0,0,0,0,-9,-6]} 1. e4 {[%emt 0:02:40]} e5 {[%emt 0:00:09]} 2. Nf3 {[%emt 0:00:17]} Nc6 {[%emt 0:00:04]} 3. Nc3 {[%emt 0:00:08]} Nf6 {[%emt 0:00:03]} 4. d4 {[%emt 0:00:06]} exd4 {[%emt 0:00:03]} 5. Nxd4 {[%emt 0:00:05]} Bb4 {[%emt 0:00:04]} 6. Nxc6 {[%emt 0:00:12]} bxc6 {[%emt 0:00:04]} 7. Bd3 {[%emt 0:00:06]} d5 {[%emt 0:00:06] The position is equal.} 8. exd5 {[%emt 0:00:08] C47: Scotch Four Knights and Four Knights with 4 g3.} O-O {[%emt 0:00:08]} 9. O-O {[%emt 0:00:04]} cxd5 {[%emt 0:00:50] Not much happened in this game.   Weighted Error Value: White=0.05 (flawless) /Black=0.00 (flawless)   OK:         	---       	Black=2} 10. h3 $146 h6 11. Qf3 Be6 12. Bf4 Bd6 13. Nb5 Bxf4 14. Qxf4 c5 15. Nc7 Rb8 16. Nxe6 fxe6 17. b3 Nh5 {½-½ Vidit,S (2726)-Erigaisi,A (2797) EU-Cup 39th Vrnjacka Banja 2024 (6.1)} 1/2-1/2